fUSD/lending_fUSD_20260626
["ID","MTS","AMOUNT","RATE_DAILY","PERIOD"]
[426470921,1782427838000,-170.180181,0.0002,2]
[426470923,1782427838000,-502.0,0.0002,2]
[426470931,1782427838000,-151.0,0.000208,2]
[426470932,1782427838000,-151.0,0.000208,2]
[426470935,1782427838000,-151.0,0.000208,2]
[426470926,1782427838000,-769.0,0.0002,2]
[426470924,1782427838000,-567.0,0.0002,2]
[426470922,1782427838000,-169.12,0.0002,2]
[426470927,1782427838000,-1048.0,0.0002,2]
[426470933,1782427838000,-151.0,0.000208,2]
[426470930,1782427838000,-150.0,0.00020636,2]
[426470925,1782427838000,-240.0,0.0002,2]
[426470942,1782427838000,-151.0,0.000208,2]
[426470944,1782427838000,-151.0,0.000208,2]
[426470940,1782427838000,-151.0,0.000208,2]
[426470939,1782427838000,-151.0,0.000208,2]
[426470943,1782427838000,-151.0,0.000208,2]
[426470936,1782427838000,-151.0,0.000208,2]
[426470934,1782427838000,-151.0,0.000208,2]
[426470938,1782427838000,-151.0,0.000208,2]
[426470928,1782427838000,-174.41,0.00020368,2]
[426470929,1782427838000,-165.34,0.00020474,2]
[426470937,1782427838000,-151.0,0.000208,2]
[426471013,1782427839000,-502.0,0.00023,2]
[426471009,1782427839000,-489.28411233,0.00023,2]
[426471005,1782427839000,-218.0,0.00023,2]
[426471007,1782427839000,-1043.0,0.00023,2]
[426471011,1782427839000,-1389.19363931,0.00023,2]
[426471006,1782427839000,-265.0,0.00023,2]
[426471008,1782427839000,-314.0,0.00023,2]
[426471003,1782427839000,-156.0,0.00023,2]
[426471004,1782427839000,-516.0,0.00023,2]
[426471012,1782427839000,-3960.09382942,0.00023,2]
[426471010,1782427839000,-1055.27270652,0.00023,2]
[426471026,1782427839000,-2979.43660662,0.00023483,2]
[426471014,1782427839000,-567.0,0.00023,2]
[426471025,1782427839000,-3960.09382942,0.000234,2]
[426471024,1782427839000,-1389.19363931,0.000234,2]
[426471021,1782427839000,-3960.09382942,0.000232,2]
[426471018,1782427839000,-489.28411233,0.000232,2]
[426471017,1782427839000,-1048.0,0.00023,2]
[426471016,1782427839000,-769.0,0.00023,2]
[426471019,1782427839000,-1055.27270652,0.000232,2]
[426471023,1782427839000,-1055.27270652,0.000234,2]
[426471022,1782427839000,-489.28411233,0.000234,2]
[426471020,1782427839000,-1389.19363931,0.000232,2]
[426470998,1782427839000,-9843.67483982,0.00022979,2]
[426471015,1782427839000,-240.0,0.00023,2]
[426470999,1782427839000,-5000.0,0.00022979,2]
[426470988,1782427839000,-1055.27270652,0.000225,2]
[426471001,1782427839000,-5000.0,0.00022979,2]
[426471036,1782427839000,-196.36931851,0.00023651,2]
[426470977,1782427839000,-502.0,0.00022,2]
[426470974,1782427839000,-1043.0,0.00022,2]
[426470973,1782427839000,-265.0,0.00022,2]
[426470976,1782427839000,-164.0,0.00022,2]
[426470978,1782427839000,-567.0,0.00022,2]
[426470979,1782427839000,-240.0,0.00022,2]
[426470981,1782427839000,-1048.0,0.00022,2]
[426470980,1782427839000,-769.0,0.00022,2]
[426470986,1782427839000,-504.27,0.00022466,2]
[426470985,1782427839000,-290.35,0.00022466,2]
[426470984,1782427839000,-1346.58,0.00022466,2]
[426470989,1782427839000,-1389.19363931,0.000225,2]
[426470990,1782427839000,-3960.09382942,0.000225,2]
[426470983,1782427839000,-500.0,0.00022384,2]
[426470987,1782427839000,-489.28411233,0.000225,2]
[426470982,1782427839000,-165.34,0.00022164,2]
[426470991,1782427839000,-189.86987819,0.000225,2]
[426470992,1782427839000,-2010.64,0.00022562,2]
[426471002,1782427839000,-279.0,0.00023,2]
[426470996,1782427839000,-3960.09382942,0.000227,2]
[426470997,1782427839000,-4058.91139578,0.00022879,2]
[426470995,1782427839000,-1389.19363931,0.000227,2]
[426470994,1782427839000,-1055.27270652,0.000227,2]
[426470993,1782427839000,-489.28411233,0.000227,2]
[426471000,1782427839000,-5000.0,0.00022979,2]
[426470975,1782427839000,-314.0,0.00022,2]
[426471029,1782427839000,-3960.09382942,0.000236,2]
[426471028,1782427839000,-1055.27270652,0.000236,2]
[426471061,1782427839000,-182.90246154,0.00023656,2]
[426471060,1782427839000,-172.05357506,0.00023656,2]
[426471066,1782427839000,-165.34,0.00023854,2]
[426471062,1782427839000,-178.26332024,0.00023656,2]
[426471063,1782427839000,-170.45562036,0.00023656,2]
[426471065,1782427839000,-362.30907092,0.00023749,2]
[426471071,1782427839000,-156.0,0.00024,2]
[426471069,1782427839000,-160.0,0.00023908,2]
[426471068,1782427839000,-3960.09382942,0.000239,2]
[426471067,1782427839000,-1055.27270652,0.000239,2]
[426471064,1782427839000,-4058.91139571,0.00023715,2]
[426471073,1782427839000,-218.0,0.00024,2]
[426471072,1782427839000,-516.0,0.00024,2]
[426471074,1782427839000,-265.0,0.00024,2]
[426471076,1782427839000,-314.0,0.00024,2]
[426471075,1782427839000,-1043.0,0.00024,2]
[426471081,1782427839000,-1048.0,0.00024,2]
[426471078,1782427839000,-567.0,0.00024,2]
[426471077,1782427839000,-502.0,0.00024,2]
[426471079,1782427839000,-240.0,0.00024,2]
[426471082,1782427839000,-500.0,0.00024055,2]
[426471080,1782427839000,-769.0,0.00024,2]
[426471083,1782427839000,-1055.27270652,0.000241,2]
[426471084,1782427839000,-3960.09382942,0.000241,2]
[426471037,1782427839000,-168.85718495,0.00023651,2]
[426471059,1782427839000,-152.6866486,0.00023656,2]
[426471058,1782427839000,-188.8801333,0.00023656,2]
[426471070,1782427839000,-279.0,0.00024,2]
[426471051,1782427839000,-157.85801191,0.00023656,2]
[426471057,1782427839000,-191.33239919,0.00023656,2]
[426471030,1782427839000,-208.12497018,0.00023651,2]
[426471031,1782427839000,-157.46039437,0.00023651,2]
[426471032,1782427839000,-200.50214495,0.00023651,2]
[426471035,1782427839000,-170.88738237,0.00023651,2]
[426471034,1782427839000,-167.99417719,0.00023651,2]
[426471033,1782427839000,-178.25068758,0.00023651,2]
[426471038,1782427839000,-157.01345415,0.00023651,2]
[426471045,1782427839000,-150.00345718,0.00023652,2]
[426471048,1782427839000,-165.24814212,0.00023655,2]
[426471039,1782427839000,-180.56630192,0.00023651,2]
[426471042,1782427839000,-168.83203233,0.00023651,2]
[426471041,1782427839000,-193.043726,0.00023651,2]
[426471027,1782427839000,-252.36871412,0.00023564,2]
[426471055,1782427839000,-209.65532363,0.00023656,2]
[426471040,1782427839000,-170.93637311,0.00023651,2]
[426471043,1782427839000,-217.1219251,0.00023651,2]
[426471046,1782427839000,-202.74114551,0.00023652,2]
[426471047,1782427839000,-190.1575046,0.00023652,2]
[426471050,1782427839000,-201.39791359,0.00023656,2]
[426471049,1782427839000,-165.30874203,0.00023655,2]
[426471053,1782427839000,-151.33038119,0.00023656,2]
[426471044,1782427839000,-175.50044896,0.00023651,2]
[426471052,1782427839000,-238.08681931,0.00023656,2]
[426471054,1782427839000,-260.39109432,0.00023656,2]
[426471056,1782427839000,-291.89404872,0.00023656,2]
[426471125,1782427840000,-419.31064726,0.00024914,2]
[426471109,1782427840000,-361.13260383,0.00024909,2]
[426471124,1782427840000,-520.78218864,0.00024914,2]
[426471121,1782427840000,-315.71602381,0.00024914,2]
[426471122,1782427840000,-476.17363862,0.00024914,2]
[426471111,1782427840000,-243.87991588,0.00024909,2]
[426471120,1782427840000,-402.79582719,0.00024914,2]
[426471130,1782427840000,-367.35276006,0.00024914,2]
[426471114,1782427840000,-434.2438502,0.00024909,2]
[426471116,1782427840000,-300.00691436,0.00024909,2]
[426471127,1782427840000,-382.66479838,0.00024914,2]
[426471119,1782427840000,-330.49628423,0.00024913,2]
[426471123,1782427840000,-302.66076238,0.00024914,2]
[426471135,1782427840000,-340.91124073,0.00024914,2]
[426471128,1782427840000,-377.7602666,0.00024914,2]
[426471129,1782427840000,-305.3732972,0.00024914,2]
[426471131,1782427840000,-240.48004253,0.00024914,2]
[426471133,1782427840000,-365.80492308,0.00024914,2]
[426471132,1782427840000,-344.10715012,0.00024914,2]
[426471134,1782427840000,-356.52664049,0.00024914,2]
[426471141,1782427840000,-529.16979889,0.00025,2]
[426471140,1782427840000,-156.0,0.00025,2]
[426471136,1782427840000,-229.36482636,0.00024914,2]
[426471139,1782427840000,-294.0,0.00025,2]
[426471137,1782427840000,-208.69185021,0.0002499,2]
[426471126,1782427840000,-583.78809744,0.00024914,2]
[426471118,1782427840000,-380.31500921,0.00024909,2]
[426471087,1782427840000,-251.46184804,0.00024174,30]
[426471107,1782427840000,-337.71436989,0.00024909,2]
[426471086,1782427840000,-441.23,0.0002411,2]
[426471088,1782427840000,-500.0,0.00024356,2]
[426471092,1782427840000,-168.234652,0.000245,14]
[426471089,1782427840000,-1055.27270652,0.000244,2]
[426471085,1782427840000,-254.05,0.0002411,2]
[426471090,1782427840000,-3960.09382942,0.000244,2]
[426471091,1782427840000,-265.713336,0.000245,14]
[426471093,1782427840000,-220.205878,0.000245,14]
[426471095,1782427840000,-1055.27270652,0.000246,2]
[426471094,1782427840000,-4058.91139571,0.0002455,2]
[426471138,1782427840000,-9310.8496616,0.00024991,2]
[426471098,1782427840000,-1000.0,0.00024658,2]
[426471099,1782427840000,-4433.69637188,0.000249,2]
[426471096,1782427840000,-3960.09382942,0.000246,2]
[426471100,1782427840000,-416.24994036,0.00024909,2]
[426471097,1782427840000,-755.47,0.00024658,2]
[426471101,1782427840000,-314.92078874,0.00024909,2]
[426471103,1782427840000,-356.50137516,0.00024909,2]
[426471104,1782427840000,-335.98835437,0.00024909,2]
[426471106,1782427840000,-392.73863701,0.00024909,2]
[426471113,1782427840000,-386.087452,0.00024909,2]
[426471108,1782427840000,-314.0269083,0.00024909,2]
[426471112,1782427840000,-337.66406466,0.00024909,2]
[426471117,1782427840000,-405.48229102,0.00024909,2]
[426471115,1782427840000,-351.00089792,0.00024909,2]
[426471110,1782427840000,-341.87274623,0.00024909,2]
[426471143,1782427840000,-50000.0,0.00025,2]
[426471105,1782427840000,-341.77476474,0.00024909,2]
[426471144,1782427840000,-347.64,0.00025,2]
[426471176,1782427840000,-534.75206274,0.00025748,2]
[426471177,1782427840000,-503.98253156,0.00025748,2]
[426471178,1782427840000,-589.10795552,0.00025748,2]
[426471179,1782427840000,-512.66214711,0.00025748,2]
[426471181,1782427840000,-228.92472085,0.00025748,2]
[426471182,1782427840000,-506.57155484,0.00025748,2]
[426471180,1782427840000,-245.45203645,0.00025748,2]
[426471184,1782427840000,-541.69890575,0.00025748,2]
[426471186,1782427840000,-512.80911934,0.00025748,2]
[426471183,1782427840000,-471.04036245,0.00025748,2]
[426471185,1782427840000,-204.00418421,0.00025748,2]
[426471187,1782427840000,-487.75983176,0.00025748,2]
[426471171,1782427840000,-219.42425046,0.00025748,2]
[426471189,1782427840000,-506.49609698,0.00025748,2]
[426471190,1782427840000,-651.3657753,0.00025748,2]
[426471198,1782427840000,-242.39797539,0.00025748,2]
[426471188,1782427840000,-579.131178,0.00025748,2]
[426471193,1782427840000,-450.01037154,0.00025748,2]
[426471197,1782427840000,-224.92096243,0.00025748,2]
[426471195,1782427840000,-608.22343652,0.00025748,2]
[426471194,1782427840000,-237.39399729,0.00025748,2]
[426471192,1782427840000,-204.31903166,0.00025748,2]
[426471196,1782427840000,-570.47251381,0.00025748,2]
[426471199,1782427840000,-243.97885196,0.00025748,2]
[426471200,1782427840000,-495.74442635,0.00025752,2]
[426471142,1782427840000,-50000.0,0.00025,2]
[426471191,1782427840000,-205.90000372,0.00025748,2]
[426471173,1782427840000,-472.3811831,0.00025748,2]
[426471102,1782427840000,-401.0042899,0.00024909,2]
[426471170,1782427840000,-1894.52,0.00025695,7]
[426471145,1782427840000,-220.0,0.00025,2]
[426471152,1782427840000,-780.82821955,0.00025,2]
[426471150,1782427840000,-574.0,0.00025,2]
[426471151,1782427840000,-254.62790106,0.00025,2]
[426471147,1782427840000,-1043.1539236,0.00025,2]
[426471148,1782427840000,-328.0,0.00025,2]
[426471149,1782427840000,-520.0,0.00025,2]
[426471153,1782427840000,-1053.0,0.00025,2]
[426471155,1782427840000,-4058.91139571,0.00025386,2]
[426471157,1782427840000,-1277.0,0.00025496,2]
[426471156,1782427840000,-3562.0,0.00025496,2]
[426471158,1782427840000,-1361.0,0.00025496,2]
[426471154,1782427840000,-362.30907092,0.00025062,2]
[426471146,1782427840000,-275.0,0.00025,2]
[426471161,1782427840000,-200.0,0.00025496,2]
[426471167,1782427840000,-191.53036183,0.000255,4]
[426471164,1782427840000,-175.0,0.00025496,2]
[426471169,1782427840000,-5387.41,0.00025695,7]
[426471166,1782427840000,-216.0,0.00025496,2]
[426471162,1782427840000,-3649.0,0.00025496,2]
[426471175,1782427840000,-601.50643486,0.00025748,2]
[426471168,1782427840000,-4433.69637186,0.00025571,2]
[426471172,1782427840000,-624.37491053,0.00025748,2]
[426471165,1782427840000,-150.0,0.00025496,2]
[426471163,1782427840000,-150.0,0.00025496,2]
[426471160,1782427840000,-278.0,0.00025496,2]
[426471159,1782427840000,-150.0,0.00025496,2]
[426471174,1782427840000,-203.07370782,0.00025748,2]
[426471236,1782427841000,-900.0,0.000259,9]
[426471234,1782427841000,-23666.32,0.00025786,2]
[426471242,1782427841000,-150.0,0.00026086,5]
[426471237,1782427841000,-150.41477286,0.00025927,2]
[426471230,1782427841000,-534.78996073,0.00025752,2]
[426471235,1782427841000,-346.87,0.00025786,2]
[426471233,1782427841000,-162.8137474,0.00025752,2]
[426471229,1782427841000,-220.82223993,0.00025752,2]
[426471226,1782427841000,-155.76491572,0.00025752,2]
[426471238,1782427841000,-50000.0,0.00026,2]
[426471239,1782427841000,-7310.79508902,0.00026,2]
[426471241,1782427841000,-315.17,0.00026027,7]
[426471245,1782427841000,-4433.69637186,0.00026243,2]
[426471244,1782427841000,-7310.79508902,0.00026222,2]
[426471246,1782427841000,-438.84850092,0.00026307,2]
[426471256,1782427841000,-683.54952948,0.00026307,2]
[426471247,1782427841000,-429.90475419,0.00026307,2]
[426471249,1782427841000,-629.84157747,0.00026307,2]
[426471248,1782427841000,-832.49988071,0.00026307,2]
[426471253,1782427841000,-713.00275031,0.00026307,2]
[426471254,1782427841000,-671.97670874,0.00026307,2]
[426471252,1782427841000,-371.92863525,0.00026307,2]
[426471255,1782427841000,-785.47727403,0.00026307,2]
[426471250,1782427841000,-406.14741563,0.00026307,2]
[426471232,1782427841000,-458.72965273,0.00025752,2]
[426471243,1782427841000,-4058.91139571,0.00026222,2]
[426471221,1782427841000,-566.6403999,0.00025752,2]
[426471218,1782427841000,-628.96597089,0.00025752,2]
[426471231,1782427841000,-511.36686109,0.00025752,2]
[426471203,1782427841000,-233.68651285,0.00025752,2]
[426471204,1782427841000,-215.08436668,0.00025752,2]
[426471202,1782427841000,-495.92622608,0.00025752,2]
[426471207,1782427841000,-247.39069773,0.00025752,2]
[426471201,1782427841000,-473.85121219,0.00025752,2]
[426471205,1782427841000,-604.19374078,0.00025752,2]
[426471208,1782427841000,-203.2992283,0.00025752,2]
[426471206,1782427841000,-245.99710636,0.00025752,2]
[426471212,1782427841000,-200.68787274,0.00025752,2]
[426471211,1782427841000,-185.25841479,0.00025752,2]
[426471215,1782427841000,-239.39168449,0.00025752,2]
[426471210,1782427841000,-714.26045793,0.00025752,2]
[426471219,1782427841000,-875.68214616,0.00025752,2]
[426471251,1782427841000,-802.00857981,0.00026307,2]
[426471217,1782427841000,-781.17328295,0.00025752,2]
[426471214,1782427841000,-453.99114356,0.00025752,2]
[426471213,1782427841000,-206.7260795,0.00025752,2]
[426471220,1782427841000,-573.99719756,0.00025752,2]
[426471216,1782427841000,-197.26449725,0.00025752,2]
[426471209,1782427841000,-473.57403572,0.00025752,2]
[426471228,1782427841000,-548.70738462,0.00025752,2]
[426471224,1782427841000,-480.96008505,0.00025752,2]
[426471223,1782427841000,-182.36092906,0.00025752,2]
[426471222,1782427841000,-458.05994581,0.00025752,2]
[426471227,1782427841000,-516.16072519,0.00025752,2]
[426471225,1782427841000,-209.99992073,0.00025752,2]
[426471257,1782427841000,-457.8494417,0.00026307,2]
[426471240,1782427841000,-181.47,0.00026027,7]
[426471264,1782427841000,-772.174904,0.00026307,2]
[426471284,1782427841000,-419.13387339,0.00026311,2]
[426471286,1782427841000,-805.59165438,0.00026311,2]
[426471291,1782427841000,-386.57456617,0.00026311,2]
[426471294,1782427841000,-952.34727723,0.00026311,2]
[426471293,1782427841000,-631.43204763,0.00026311,2]
[426471296,1782427841000,-159.76145998,0.00026311,2]
[426471297,1782427841000,-401.37574548,0.00026311,2]
[426471298,1782427841000,-413.45215901,0.00026311,2]
[426471295,1782427841000,-370.51682958,0.00026311,2]
[426471292,1782427841000,-234.16705774,0.00026311,2]
[426471300,1782427841000,-605.32152475,0.00026311,2]
[426471299,1782427841000,-312.02464361,0.00026311,2]
[426471283,1782427841000,-631.80161625,0.00026311,2]
[426471301,1782427841000,-478.78336899,0.00026311,2]
[426471302,1782427841000,-394.52899451,0.00026311,2]
[426471313,1782427841000,-184.1702866,0.00026311,2]
[426471305,1782427841000,-395.9835908,0.00026311,2]
[426471306,1782427841000,-419.72336408,0.00026311,2]
[426471304,1782427841000,-1041.56437727,0.00026311,2]
[426471307,1782427841000,-165.78920298,0.00026311,2]
[426471308,1782427841000,-301.14518982,0.00026311,2]
[426471309,1782427841000,-222.47990996,0.00026311,2]
[426471311,1782427841000,-838.62129452,0.00026311,2]
[426471310,1782427841000,-352.23777355,0.00026311,2]
[426471312,1782427841000,-160.52614116,0.00026311,2]
[426471258,1782427841000,-490.90407291,0.00026307,2]
[426471303,1782427841000,-427.69382323,0.00026311,2]
[426471285,1782427841000,-430.16873336,0.00026311,2]
[426471314,1782427841000,-1167.57619488,0.00026311,2]
[426471281,1782427841000,-212.33070292,0.00026307,2]
[426471282,1782427841000,-660.99256846,0.00026311,2]
[426471262,1782427841000,-683.74549246,0.00026307,2]
[426471260,1782427841000,-628.0538166,0.00026307,2]
[426471263,1782427841000,-731.63974764,0.00026307,2]
[426471261,1782427841000,-722.26520767,0.00026307,2]
[426471265,1782427841000,-675.32812931,0.00026307,2]
[426471267,1782427841000,-868.48770041,0.00026307,2]
[426471274,1782427841000,-760.63001841,0.00026307,2]
[426471277,1782427841000,-484.79595078,0.00026307,2]
[426471271,1782427841000,-474.78799457,0.00026307,2]
[426471266,1782427841000,-200.13721741,0.00026307,2]
[426471273,1782427841000,-810.96458203,0.00026307,2]
[426471259,1782427841000,-675.42873979,0.00026307,2]
[426471289,1782427841000,-491.99421271,0.00026311,2]
[426471268,1782427841000,-427.69505154,0.00026307,2]
[426471275,1782427841000,-404.22666804,0.00026307,2]
[426471270,1782427841000,-600.01382872,0.00026307,2]
[426471272,1782427841000,-193.54528885,0.00026307,2]
[426471269,1782427841000,-411.80000744,0.00026307,2]
[426471279,1782427841000,-436.33831095,0.00026307,2]
[426471287,1782427841000,-406.65205699,0.00026311,2]
[426471276,1782427841000,-449.84192485,0.00026307,2]
[426471288,1782427841000,-185.5123728,0.00026311,2]
[426471290,1782427841000,-494.78139545,0.00026311,2]
[426471278,1782427841000,-441.64447986,0.00026307,2]
[426471280,1782427841000,-487.95770393,0.00026307,2]
[426471353,1782427842000,-877.50224479,0.00026866,2]
[426471361,1782427842000,-1459.4702436,0.0002687,2]
[426471354,1782427842000,-1013.70572754,0.00026866,2]
[426471352,1782427842000,-965.21863,0.00026866,2]
[426471350,1782427842000,-854.68186557,0.00026866,2]
[426471346,1782427842000,-839.97088593,0.00026866,2]
[426471349,1782427842000,-902.83150958,0.00026866,2]
[426471347,1782427842000,-854.43691185,0.00026866,2]
[426471348,1782427842000,-981.84659253,0.00026866,2]
[426471345,1782427842000,-160.02799572,0.00026805,2]
[426471351,1782427842000,-844.16016164,0.00026866,2]
[426471359,1782427842000,-1301.95547159,0.0002687,2]
[426471375,1782427842000,-151.0,0.00027,2]
[426471357,1782427842000,-868.55492486,0.0002687,2]
[426471358,1782427842000,-756.65190594,0.0002687,2]
[426471355,1782427842000,-1006.98956797,0.0002687,2]
[426471356,1782427842000,-1190.43409654,0.0002687,2]
[426471362,1782427842000,-944.40066651,0.0002687,2]
[426471373,1782427842000,-151.0,0.00027,2]
[426471366,1782427842000,-7310.79508902,0.00026889,2]
[426471369,1782427842000,-50000.0,0.00027,2]
[426471364,1782427842000,-914.51230769,0.0002687,2]
[426471368,1782427842000,-238.18335614,0.00026983,2]
[426471365,1782427842000,-852.27810181,0.0002687,2]
[426471344,1782427842000,-7310.79508902,0.00026667,2]
[426471360,1782427842000,-1048.27661815,0.0002687,2]
[426471339,1782427842000,-304.29606457,0.00026311,2]
[426471332,1782427842000,-713.05328097,0.00026311,2]
[426471343,1782427842000,-7310.79508902,0.00026444,2]
[426471363,1782427842000,-918.38190014,0.0002687,2]
[426471316,1782427842000,-765.32959675,0.00026311,2]
[426471315,1782427842000,-160.30085569,0.00026311,2]
[426471317,1782427842000,-755.52053321,0.00026311,2]
[426471318,1782427842000,-443.49372262,0.00026311,2]
[426471320,1782427842000,-429.76400259,0.00026311,2]
[426471321,1782427842000,-364.72185813,0.00026311,2]
[426471319,1782427842000,-610.74659441,0.00026311,2]
[426471323,1782427842000,-183.39144829,0.00026311,2]
[426471322,1782427842000,-734.70552012,0.00026311,2]
[426471324,1782427842000,-721.44012758,0.00026311,2]
[426471325,1782427842000,-157.81993866,0.00026311,2]
[426471342,1782427842000,-362.30907092,0.00026375,2]
[426471337,1782427842000,-408.05532179,0.00026311,2]
[426471326,1782427842000,-311.52983143,0.00026311,2]
[426471329,1782427842000,-392.47097785,0.00026311,2]
[426471331,1782427842000,-382.84692595,0.00026311,2]
[426471334,1782427842000,-681.82248145,0.00026311,2]
[426471336,1782427842000,-419.99984147,0.00026311,2]
[426471333,1782427842000,-229.90086396,0.00026311,2]
[426471328,1782427842000,-688.21430025,0.00026311,2]
[426471330,1782427842000,-731.60984615,0.00026311,2]
[426471335,1782427842000,-350.18248441,0.00026311,2]
[426471338,1782427842000,-688.09447909,0.00026311,2]
[426471341,1782427842000,-325.62749479,0.00026311,2]
[426471340,1782427842000,-157.31506445,0.00026311,2]
[426471327,1782427842000,-282.13967237,0.00026311,2]
[426471370,1782427842000,-50000.0,0.00027,2]
[426471419,1782427842000,-343.070164,0.00027397,2]
[426471377,1782427842000,-151.0,0.00027,2]
[426471402,1782427842000,-151.49213433,0.00027397,10]
[426471407,1782427842000,-319.991767,0.00027397,2]
[426471409,1782427842000,-151.0,0.00027397,2]
[426471405,1782427842000,-319.991767,0.00027397,2]
[426471406,1782427842000,-319.991767,0.00027397,2]
[426471412,1782427842000,-152.885403,0.00027397,2]
[426471416,1782427842000,-495.57553,0.00027397,2]
[426471414,1782427842000,-495.57553,0.00027397,2]
[426471413,1782427842000,-1475.4,0.00027397,2]
[426471418,1782427842000,-343.070164,0.00027397,2]
[426471415,1782427842000,-495.57553,0.00027397,2]
[426471420,1782427842000,-343.070164,0.00027397,2]
[426471408,1782427842000,-300.0,0.00027397,2]
[426471417,1782427842000,-495.57553,0.00027397,2]
[426471422,1782427842000,-343.070164,0.00027397,2]
[426471423,1782427842000,-3096.22,0.00027397,2]
[426471426,1782427842000,-236.897163,0.00027397,2]
[426471425,1782427842000,-20734.75,0.00027397,10]
[426471427,1782427842000,-473.79432599,0.00027397,2]
[426471424,1782427842000,-24881.7,0.00027397,10]
[426471429,1782427842000,-320.58920084,0.00027397,2]
[426471432,1782427842000,-167.8129797,0.00027397,2]
[426471430,1782427842000,-159.44593539,0.00027397,2]
[426471428,1782427842000,-710.69148899,0.00027397,2]
[426471433,1782427842000,-503.43893911,0.00027397,2]
[426471367,1782427842000,-4433.69637186,0.00026914,2]
[426471421,1782427842000,-530.57,0.00027397,2]
[426471404,1782427842000,-319.991767,0.00027397,2]
[426471431,1782427842000,-318.89187077,0.00027397,2]
[426471401,1782427842000,-1500.0,0.00027397,2]
[426471403,1782427842000,-755.47,0.00027397,2]
[426471384,1782427842000,-151.0,0.0002704,2]
[426471386,1782427842000,-7310.79508902,0.00027111,2]
[426471385,1782427842000,-4058.91139571,0.00027057,2]
[426471378,1782427842000,-151.0,0.00027,2]
[426471383,1782427842000,-256.654647,0.0002704,2]
[426471380,1782427842000,-151.0,0.00027,2]
[426471387,1782427842000,-150.0,0.00027129,5]
[426471379,1782427842000,-151.0,0.00027,2]
[426471382,1782427842000,-151.0,0.00027,2]
[426471381,1782427842000,-174.380432,0.00027,2]
[426471388,1782427842000,-252.36871412,0.00027252,2]
[426471389,1782427842000,-500.0,0.00027256,2]
[426471376,1782427842000,-151.0,0.00027,2]
[426471391,1782427842000,-1500.0,0.00027256,2]
[426471390,1782427842000,-401.95641844,0.00027256,2]
[426471411,1782427842000,-151.0,0.00027397,2]
[426471410,1782427842000,-151.0,0.00027397,2]
[426471400,1782427842000,-195.33695911,0.00027397,2]
[426471398,1782427842000,-351.15667359,0.00027397,2]
[426471396,1782427842000,-151.0,0.00027397,2]
[426471399,1782427842000,-500.0,0.00027397,2]
[426471393,1782427842000,-7310.79508902,0.00027333,2]
[426471395,1782427842000,-151.0,0.00027397,2]
[426471394,1782427842000,-208.63313888,0.00027394,2]
[426471392,1782427842000,-1473.30168622,0.00027256,2]
[426471397,1782427842000,-151.0,0.00027397,2]
[426471471,1782427843000,-1012.99219397,0.00027704,2]
[426471473,1782427843000,-1428.52091585,0.00027709,2]
[426471467,1782427843000,-1007.96506311,0.00027704,2]
[426471462,1782427843000,-7310.79508902,0.00027556,2]
[426471469,1782427843000,-1083.3978115,0.00027704,2]
[426471470,1782427843000,-1025.61823868,0.00027704,2]
[426471475,1782427843000,-907.98228713,0.00027709,2]
[426471466,1782427843000,-362.30907092,0.00027687,2]
[426471465,1782427843000,-351.15667359,0.00027608,2]
[426471468,1782427843000,-1025.32429421,0.00027704,2]
[426471472,1782427843000,-1053.00269375,0.00027704,2]
[426471476,1782427843000,-1562.34656591,0.00027709,2]
[426471480,1782427843000,-1102.05828017,0.00027709,2]
[426471477,1782427843000,-1257.93194178,0.00027709,2]
[426471474,1782427843000,-1042.26590983,0.00027709,2]
[426471479,1782427843000,-1133.28079981,0.00027709,2]
[426471489,1782427843000,-173.25,0.00027912,7]
[426471478,1782427843000,-1751.36429232,0.00027709,2]
[426471483,1782427843000,-7310.79508902,0.00027778,2]